fUSD/lending_fUSD_20251130
["ID","MTS","AMOUNT","RATE_DAILY","PERIOD"]
[395178048,1764516640628,-1000.0,0.00016521,2]
[395178049,1764516640637,-502.84705647,0.00016521,2]
[395178050,1764516640647,-1000.0,0.00016521,2]
[395178051,1764516640656,-1018.43163791,0.00016521,2]
[395178052,1764516640666,-1000.0,0.00016521,2]
[395178053,1764516640675,-520.80397315,0.00016521,2]
[395178054,1764516640685,-696.8967906,0.00016521,2]
[395178055,1764516640694,-150.0,0.00016521,2]
[395178056,1764516640703,-150.0,0.00016521,2]
[395178057,1764516640712,-150.0,0.00016521,2]
[395178058,1764516640721,-150.0,0.00016521,2]
[395178059,1764516640731,-150.0,0.00016521,2]
[395178060,1764516640740,-150.0,0.00016521,2]
[395178061,1764516640750,-500.0,0.00016521,2]
[395178062,1764516640759,-150.0,0.00016521,2]
[395178063,1764516640768,-158.73149787,0.00016521,2]
[395178064,1764516640778,-500.0,0.00016521,2]
[395178065,1764516640787,-500.0,0.00016521,2]
[395178066,1764516640797,-7980.577301,0.00016548,2]
[395178067,1764516640806,-150.0,0.00016658,2]
[395178068,1764516640816,-150.0,0.00016658,2]
[395178069,1764516640825,-236.64880268,0.00016658,2]
[395178070,1764516640834,-150.0,0.00016658,2]
[395178071,1764516640844,-500.0,0.00016658,2]
[395178072,1764516640853,-500.0,0.00016658,2]
[395178073,1764516640862,-500.0,0.00016658,2]
[395178074,1764516640872,-200.0,0.0001666,2]
[395178075,1764516640881,-150.0,0.00016712,2]
[395178076,1764516640890,-150.000001,0.00016712,2]
[395178077,1764516640900,-150.0,0.00016712,2]
[395178078,1764516640909,-274.89253593,0.00016712,2]
[395178079,1764516640921,-150.0,0.00016712,2]
[395178080,1764516640938,-150.0,0.00016712,2]
[395178081,1764516640948,-150.0,0.00016712,2]
[395178082,1764516640958,-150.0,0.00016712,2]
[395178083,1764516640970,-150.0,0.00016712,2]
[395178084,1764516640979,-150.0,0.00016712,2]
[395178085,1764516640989,-200.0,0.00016712,2]
[395178086,1764516641000,-150.0,0.00016712,2]
[395178087,1764516641012,-150.0,0.00016712,2]
[395178088,1764516641021,-150.0,0.00016795,2]
[395178089,1764516641031,-200.0,0.00016795,2]
[395178090,1764516641040,-500.0,0.00016795,2]
[395178091,1764516641050,-150.0,0.00016795,2]
[395178092,1764516641059,-500.0,0.00016795,2]
[395178093,1764516641069,-150.0,0.00016849,2]
[395178094,1764516641078,-150.0,0.00016849,2]
[395178095,1764516641088,-150.0,0.00016849,2]
[395178096,1764516641097,-207.95472836,0.00016849,2]
[395178097,1764516641107,-150.0,0.00016849,2]
[395178098,1764516641116,-160.11734806,0.00016878,2]
[395178099,1764516641125,-500.0,0.00016899,2]
[395178100,1764516641135,-500.0,0.00016899,2]
[395178101,1764516641144,-14219.80086515,0.000169,3]
[395178102,1764516641154,-201.41866534,0.000169,2]
[395178103,1764516641163,-762.26043833,0.000169,2]
[395178104,1764516641172,-7980.577301,0.000169,2]
[395178105,1764516641182,-269.71295789,0.000169,2]
[395178106,1764516641191,-334.43684184,0.000169,2]
[395178107,1764516641200,-278.53400054,0.000169,2]
[395178108,1764516641210,-1992.15,0.00016922,2]
[395178109,1764516641219,-10769.64,0.00016922,2]
[395178110,1764516641229,-150.0,0.00016932,2]
[395178111,1764516641242,-300.0,0.00016932,2]
[395178112,1764516641252,-500.0,0.00016932,2]
[395178113,1764516641261,-395.06640219,0.00016968,2]
[395178114,1764516641271,-502.78965489,0.00016973,2]
[395178115,1764516641280,-500.0,0.00016973,2]
[395178116,1764516641290,-503.20960416,0.00016973,2]
[395178117,1764516641299,-165.48144964,0.00016973,2]
[395178118,1764516641308,-500.0,0.00016973,2]
[395178119,1764516641318,-540.53867105,0.00016973,2]
[395178120,1764516641327,-500.0,0.00016973,2]
[395178121,1764516641337,-500.0,0.00016973,2]
[395178122,1764516641346,-500.0,0.00016973,2]
[395178123,1764516641355,-616.40948711,0.00016973,2]
[395178124,1764516641365,-500.0,0.00016973,2]
[395178125,1764516641374,-500.0,0.00016973,2]
[395178126,1764516641383,-502.93083971,0.00016973,2]
[395178127,1764516641392,-500.0,0.00016973,2]
[395178128,1764516641402,-200.00768026,0.00016973,2]
[395178129,1764516641411,-500.0,0.00016973,2]
[395178130,1764516641420,-500.0,0.00016973,2]
[395178131,1764516641429,-161.86969264,0.00016973,2]
[395178132,1764516641439,-500.0,0.00016973,2]
[395178133,1764516641448,-317.71167471,0.00016973,2]
[395178134,1764516641457,-500.0,0.00016973,2]
[395178135,1764516641466,-500.0,0.00016973,2]
[395178136,1764516641476,-500.0,0.00016973,2]
[395178137,1764516641485,-166.09514249,0.00016973,2]
[395178138,1764516641494,-507.02104113,0.00016973,2]
[395178139,1764516641503,-500.0,0.00016973,2]
[395178140,1764516641512,-500.0,0.00016973,2]
[395178141,1764516641521,-205.98492011,0.00016973,2]
[395178142,1764516641531,-501.13898668,0.00016973,2]
[395178143,1764516641540,-500.0,0.00016973,2]
[395178144,1764516641549,-500.38978168,0.00016973,2]
[395178145,1764516641559,-500.0,0.00016973,2]
[395178146,1764516641568,-501.61843285,0.00016973,2]
[395178147,1764516641577,-500.0,0.00016973,2]
[395178148,1764516641586,-164.32669918,0.00016973,2]
[395178149,1764516641595,-481.62122434,0.00016973,2]
[395178151,1764516641605,-501.16592491,0.00016973,2]
[395178152,1764516641614,-160.104108,0.00016973,2]
[395178153,1764516641623,-500.0,0.00016973,2]
[395178154,1764516641632,-206.77101016,0.00016973,2]
[395178155,1764516641642,-500.0,0.00016973,2]
[395178156,1764516641651,-500.0,0.00016973,2]
[395178157,1764516641661,-500.0,0.00016973,2]
[395178158,1764516641671,-150.0,0.00016986,2]
[395178159,1764516641680,-150.0,0.00016986,2]
[395178160,1764516641689,-200.0,0.00016986,2]
[395178161,1764516641698,-200.0,0.00016986,2]
[395178162,1764516641707,-1347.0,0.00016986,2]
[395178163,1764516641717,-164.38079063,0.0001699,2]
[395178164,1764516641727,-500.0,0.00016997,2]
[395178165,1764516641736,-500.0,0.00016997,2]
[395178166,1764516641745,-500.0,0.00016997,2]
[395178167,1764516641754,-500.0,0.00016997,2]
[395178168,1764516641763,-500.0,0.00016997,2]
[395178169,1764516641772,-500.0,0.00016997,2]
[395178170,1764516641782,-500.0,0.00016997,2]
[395178171,1764516641791,-500.0,0.00016997,2]
[395178172,1764516641800,-500.0,0.00016997,2]
[395178173,1764516641810,-500.0,0.00016997,2]
[395178174,1764516641819,-500.0,0.00016997,2]
[395178175,1764516641829,-151.0,0.00016997,2]
[395178176,1764516641838,-500.0,0.00016998,2]
[395178177,1764516641847,-500.0,0.00016998,2]
[395178178,1764516641857,-500.0,0.00016998,2]
[395178179,1764516641866,-500.0,0.00016998,2]
[395178180,1764516641875,-519.32805224,0.00016998,2]
[395178181,1764516641885,-183.05840034,0.00016998,2]
[395178182,1764516641895,-300.0,0.00016999,2]
[395178183,1764516641904,-300.0,0.00016999,2]
[395178184,1764516641914,-300.0,0.00016999,2]
[395178185,1764516641927,-250.0,0.00017,2]
[395178186,1764516641937,-74617.02504029,0.00017,2]
[395178187,1764516641947,-4715603.6089972,0.00017,2]
[395178188,1764516642021,-500.0,0.00015973,2]
[395178189,1764516642030,-957.90842426,0.00016521,2]
[395178190,1764516642040,-2233930.98538471,0.00017,2]
[395178195,1764516643254,-500.34928539,0.00015,2]
[395178196,1764516643264,-686.0379141,0.000159,2]
[395178197,1764516643274,-455780.31544123,0.00017,2]
[395178198,1764516643286,-1230385.4625906,0.00017,2]
[395178199,1764516643358,-344.38496351,0.00017,2]
[395178201,1764516646117,-500.0,0.00013827,2]
[395178202,1764516646128,-500.0,0.00013827,2]
[395178203,1764516646137,-500.0,0.00013827,2]
[395178204,1764516646147,-500.0,0.00015973,2]
[395178205,1764516646157,-166.25294244,0.00015999,2]
[395178206,1764516646169,-333.74705756,0.00015999,2]
[395178207,1764516646179,-277.94257699,0.00016115,2]
[395178208,1764516646191,-222.05742301,0.00016115,2]
[395178209,1764516646200,-210.97106657,0.00016521,2]
[395178211,1764516646211,-362.5,0.00016521,2]
[395178213,1764516646222,-311.1538,0.00016521,2]
[395178215,1764516646234,-115.37513343,0.00016521,2]
[395178219,1764516646243,-309.1848666,0.00017,2]
[395178221,1764516646255,-2266.82000082,0.00017,2]
[395178263,1764516775382,-2292.303,0.00013551,2]
[395178264,1764516775404,-168.475,0.00013551,2]
[395178265,1764516775426,-300.0,0.00013728,2]
[395178266,1764516775448,-3605.222,0.00013729,2]
[395178285,1764517831977,-1867.25521283,0.00012742,2]
[395178286,1764517831988,-534.89478717,0.00012742,2]
[395178287,1764517831998,-220.09,0.00012759,2]
[395178288,1764517832007,-210.91,0.00012882,2]
[395178289,1764517832017,-250.0,0.00012884,2]
[395178290,1764517832027,-333.32665269,0.00012909,2]
[395178291,1764517832038,-651.25334731,0.00012909,2]
[395178292,1764517832047,-249.14562607,0.00012954,2]
[395178293,1764517832056,-1852.42,0.00013016,2]
[395178294,1764517832066,-311.74921821,0.00013054,2]
[395178295,1764517832077,-405.25078179,0.00013054,2]
[395178296,1764517832086,-68.37991121,0.00013059,2]
[395178297,1764517832154,-0.7428949,0.00013059,2]
[395178299,1764517832165,-95.66719389,0.00013059,2]
[395178302,1764517832174,-1200.0,0.00013475,2]
[395178304,1764517832183,-543.92174102,0.00013476,2]
[395178305,1764517832194,-570.88444884,0.00013476,2]
[395178308,1764517832205,-385.19381014,0.00013476,2]
[395178310,1764517832214,-749.40222507,0.00013528,2]
[395178312,1764517832223,-540.83858854,0.00013599,2]
[395178314,1764517832232,-300.0,0.00013626,2]
[395178316,1764517832241,-300.0,0.00013626,2]
[395178318,1764517832251,-190.31694515,0.00013627,2]
[395178320,1764517832260,-185.78363327,0.00013627,2]
[395178322,1764517832269,-500.0,0.00013627,2]
[395178324,1764517832278,-223.44792551,0.00013627,2]
[395178326,1764517832289,-193.109424,0.00013627,2]
[395178327,1764517832298,-151.5597243,0.00013627,2]
[395178328,1764517832308,-500.0,0.00013627,2]
[395178329,1764517832317,-500.0,0.00013627,2]
[395178331,1764517832327,-500.0,0.00013627,2]
[395178332,1764517832336,-500.0,0.00013627,2]
[395178333,1764517832346,-500.0,0.00013627,2]
[395178335,1764517832355,-500.0,0.00013627,2]
[395178337,1764517832365,-500.0,0.00013627,2]
[395178338,1764517832374,-500.0,0.00013627,2]
[395178339,1764517832384,-500.0,0.00013627,2]
[395178340,1764517832393,-500.0,0.00013627,2]
[395178341,1764517832403,-500.0,0.00013627,2]
[395178342,1764517832414,-500.0,0.00013627,2]
[395178343,1764517832423,-500.0,0.00013627,2]
[395178344,1764517832432,-500.0,0.00013627,2]
[395178345,1764517832442,-500.0,0.00013627,2]
[395178346,1764517832452,-500.0,0.00013627,2]
[395178347,1764517832461,-500.0,0.00013627,2]
[395178348,1764517832471,-500.0,0.00013627,2]
[395178349,1764517832481,-217.45181042,0.00013627,2]
[395178350,1764517832491,-500.0,0.00013627,2]
[395178351,1764517832501,-500.0,0.00013627,2]
[395178352,1764517832510,-500.0,0.00013627,2]
[395178353,1764517832519,-150.0,0.00013627,2]
[395178354,1764517832528,-242.14346526,0.00013628,2]
[395178355,1764517832540,-805.848,0.00013628,2]
[395178356,1764517838104,-758952.00853474,0.00013628,2]
[395178357,1764517838114,-1474.7095,0.00013628,2]
[395178358,1764517838124,-810.27,0.00013699,2]
[395178359,1764517838135,-1287.0228,0.0001372,2]
[395178360,1764517838144,-235.2993,0.0001372,2]
[395178361,1764517838154,-280.8511,0.0001372,2]
[395178362,1764517838165,-995.25194571,0.00013727,2]
[395178363,1764517838175,-2406.918,0.00013727,2]
[395178364,1764517838185,-168.475,0.00013727,2]
[395178365,1764517838195,-150.99,0.00013727,2]
[395178366,1764517838205,-7182.5195709,0.00013727,2]
[395178367,1764517838215,-1252.0856,0.00013727,2]
[395178368,1764517838224,-33399.3792,0.00013728,2]
[395178369,1764517838234,-150.99,0.00013728,2]
[395178370,1764517838243,-299.99,0.00013728,2]
[395178371,1764517838253,-9999.99,0.00013728,2]
[395178372,1764517838263,-296.61,0.00013728,2]
[395178373,1764517838272,-3938.91,0.00013728,2]
[395178374,1764517838282,-252.56,0.00013728,2]
[395178375,1764517838293,-9646.74,0.00013728,2]
[395178376,1764517838303,-150.0,0.00013818,2]
[395178377,1764517838312,-150.0,0.00013818,2]
[395178378,1764517838322,-150.0,0.00013818,2]
[395178379,1764517838331,-500.0,0.00013818,2]
[395178380,1764517838341,-150.0,0.00013818,2]
[395178381,1764517838351,-160.73087474,0.00013818,2]
[395178382,1764517838360,-500.0,0.00013818,2]
[395178383,1764517838370,-200.0,0.0001382,2]
[395178384,1764517838379,-151.0,0.0001382,2]
[395178385,1764517838389,-151.0,0.0001382,2]
[395178386,1764517838400,-151.0,0.0001382,2]
[395178387,1764517838409,-151.0,0.0001382,2]
[395178388,1764517838420,-151.0,0.0001382,2]
[395178389,1764517838430,-151.0,0.0001382,2]
[395178390,1764517838440,-151.0,0.0001382,2]
[395178392,1764517838449,-151.0,0.0001382,2]
[395178393,1764517838459,-151.0,0.0001382,2]
[395178394,1764517838468,-151.0,0.0001382,2]
[395178395,1764517838478,-151.0,0.0001382,2]
[395178396,1764517838488,-151.0,0.0001382,2]
[395178397,1764517838498,-151.0,0.0001382,2]
[395178398,1764517838507,-151.0,0.0001382,2]
[395178399,1764517838517,-151.0,0.0001382,2]
[395178400,1764517838526,-151.0,0.0001382,2]
[395178401,1764517838536,-500.0,0.0001382,2]
[395178402,1764517838546,-151.0,0.0001382,2]
[395178403,1764517838555,-151.0,0.0001382,2]
[395178404,1764517838569,-500.0,0.0001382,2]
[395178405,1764517838580,-182.00740607,0.0001382,2]
[395178406,1764517838591,-151.0,0.0001382,2]
[395178407,1764517838602,-500.0,0.0001382,2]
[395178408,1764517838615,-500.0,0.0001382,2]
[395178409,1764517838627,-151.0,0.0001382,2]
[395178410,1764517838638,-500.0,0.0001382,2]
[395178411,1764517838650,-151.0,0.0001382,2]
[395178412,1764517838660,-500.0,0.0001382,2]
[395178413,1764517838671,-500.0,0.0001382,2]
[395178414,1764517838681,-500.0,0.0001382,2]
[395178415,1764517838692,-500.0,0.0001382,2]
[395178416,1764517838703,-500.0,0.0001382,2]
[395178417,1764517838714,-500.0,0.0001382,2]
[395178418,1764517838725,-500.0,0.0001382,2]
[395178419,1764517838735,-500.0,0.0001382,2]
[395178420,1764517838746,-200.0,0.0001382,2]
[395178421,1764517838756,-500.0,0.0001382,2]
[395178422,1764517838768,-500.0,0.0001382,2]
[395178423,1764517838779,-500.0,0.0001382,2]
[395178424,1764517838790,-188.15640171,0.0001382,2]
[395178425,1764517838802,-500.0,0.0001382,2]
[395178426,1764517838813,-500.0,0.0001382,2]
[395178427,1764517838828,-500.0,0.0001382,2]
[395178428,1764517838839,-500.0,0.0001382,2]
[395178429,1764517838850,-500.0,0.0001382,2]
[395178430,1764517838861,-500.0,0.0001382,2]
[395178431,1764517838873,-500.0,0.0001382,2]
[395178432,1764517838883,-500.0,0.0001382,2]
[395178433,1764517838894,-500.0,0.0001382,2]
[395178434,1764517838904,-500.0,0.0001382,2]
[395178435,1764517838913,-500.0,0.0001382,2]
[395178436,1764517838923,-200.0,0.0001382,2]
[395178437,1764517838935,-150.0,0.0001382,2]
[395178438,1764517838946,-160.56075218,0.0001382,2]
[395178439,1764517838958,-150.0,0.0001382,2]
[395178440,1764517838969,-150.0,0.0001382,2]
[395178441,1764517838980,-150.0,0.0001382,2]
[395178442,1764517838991,-500.0,0.0001382,2]
[395178443,1764517839003,-150.0,0.0001382,2]
[395178444,1764517839014,-158.73149787,0.0001382,2]
[395178445,1764517839026,-500.0,0.0001382,2]
[395178446,1764517839036,-751.73,0.0001382,2]
[395178447,1764517839047,-500.0,0.00013827,2]
[395178448,1764517839058,-500.0,0.00013827,2]
[395178449,1764517839069,-500.0,0.00013827,2]
[395178450,1764517839080,-500.0,0.00013827,2]
[395178451,1764517839091,-500.0,0.00013827,2]
[395178452,1764517839102,-500.0,0.00013827,2]
[395178453,1764517839113,-500.0,0.00013827,2]
[395178454,1764517839123,-500.0,0.00013827,2]
[395178455,1764517839134,-500.0,0.00013827,2]
[395178456,1764517839146,-500.0,0.00013827,2]
[395178457,1764517839157,-500.0,0.00013827,2]
[395178458,1764517839168,-500.0,0.00013827,2]
[395178459,1764517839179,-500.0,0.00013827,2]
[395178460,1764517839189,-500.0,0.00013827,2]
[395178461,1764517839201,-500.0,0.00013827,2]
[395178462,1764517839211,-500.0,0.00013827,2]
[395178463,1764517839223,-504.54484366,0.00013827,2]
[395178464,1764517839233,-500.0,0.00013827,2]
[395178465,1764517839243,-500.0,0.00013827,2]
[395178466,1764517839254,-500.0,0.00013827,2]
[395178467,1764517839265,-500.0,0.00013827,2]
[395178468,1764517839276,-500.0,0.00013827,2]
[395178469,1764517839287,-500.0,0.00013827,2]
[395178470,1764517839299,-500.0,0.00013827,2]
[395178471,1764517839312,-500.0,0.00013827,2]
[395178472,1764517839339,-521.68557809,0.00013827,2]
[395178473,1764517839351,-500.0,0.00013827,2]
[395178474,1764517839363,-500.0,0.00013827,2]
[395178475,1764517839375,-181.30501265,0.00013827,2]
[395178476,1764517839387,-500.0,0.00013827,2]
[395178477,1764517839398,-500.0,0.00013827,2]
[395178478,1764517839409,-500.0,0.00013827,2]
[395178479,1764517839422,-500.0,0.00013827,2]
[395178480,1764517839433,-500.0,0.00013827,2]
[395178481,1764517839444,-500.0,0.00013827,2]
[395178482,1764517839454,-500.0,0.00013827,2]
[395178483,1764517839464,-500.0,0.00013827,2]
[395178484,1764517839476,-500.0,0.00013827,2]
[395178485,1764517839486,-500.0,0.00013827,2]
[395178486,1764517839496,-500.0,0.00013827,2]
[395178487,1764517839509,-500.0,0.00013827,2]
[395178488,1764517839521,-500.0,0.00013827,2]
[395178489,1764517839535,-500.0,0.00013827,2]
[395178490,1764517839546,-500.0,0.00013827,2]
[395178491,1764517839556,-360.12591813,0.00013827,2]
[395178492,1764517839569,-500.0,0.00013827,2]
[395178493,1764517839584,-500.0,0.00013827,2]
[395178494,1764517839595,-500.0,0.00013827,2]
[395178495,1764517839605,-500.0,0.00013827,2]
[395178496,1764517839615,-500.0,0.00013827,2]
[395178497,1764517839626,-301.34471525,0.00013827,2]
[395178498,1764517839637,-500.0,0.00013827,2]
[395178499,1764517839649,-500.0,0.00013827,2]
[395178500,1764517839661,-500.0,0.00013827,2]
[395178501,1764517839675,-515.50675276,0.00013827,2]
[395178502,1764517839695,-500.0,0.00013827,2]
[395178503,1764517839706,-500.0,0.00013827,2]
[395178504,1764517839716,-500.0,0.00013827,2]
[395178505,1764517839727,-500.0,0.00013827,2]
[395178506,1764517839739,-150.69072968,0.00013827,2]
[395178508,1764517839750,-150.0,0.00013827,2]
[395178509,1764517839761,-150.0,0.00013827,2]
[395178510,1764517839772,-150.0,0.00013827,2]
[395178511,1764517839783,-150.0,0.00013827,2]
[395178512,1764517839795,-500.0,0.00013827,2]
[395178513,1764517839807,-500.0,0.00013827,2]
[395178514,1764517839819,-500.0,0.00013827,2]
[395178515,1764517839831,-150.0,0.00013827,2]
[395178516,1764517839842,-150.0,0.00013827,2]
[395178517,1764517839854,-150.0,0.00013827,2]
[395178518,1764517839866,-150.0,0.00013827,2]
[395178519,1764517839877,-500.0,0.00013827,2]
[395178520,1764517839888,-500.0,0.00013827,2]
[395178521,1764517839899,-500.0,0.00013827,2]
[395178522,1764517839910,-500.0,0.00013827,2]
[395178523,1764517839920,-580.07246676,0.00013827,2]
[395178524,1764517839931,-500.0,0.00013827,2]
[395178525,1764517839942,-500.0,0.00013827,2]
[395178526,1764517839952,-500.0,0.00013827,2]
[395178527,1764517839965,-500.0,0.00013827,2]
[395178528,1764517839976,-500.0,0.00013827,2]
[395178529,1764517839988,-500.0,0.00013827,2]
[395178530,1764517839999,-500.0,0.00013827,2]
[395178531,1764517840010,-500.0,0.00013827,2]
[395178533,1764517840021,-500.0,0.00013827,2]
[395178534,1764517840032,-500.0,0.00013827,2]
[395178535,1764517840043,-500.0,0.00013827,2]
[395178536,1764517840054,-500.0,0.00013827,2]
[395178537,1764517840065,-500.0,0.00013827,2]
[395178538,1764517840075,-500.0,0.00013827,2]
[395178539,1764517840086,-509.31705516,0.00013827,2]
[395178540,1764517840096,-500.0,0.00013827,2]
[395178541,1764517840106,-500.0,0.00013827,2]
[395178542,1764517840117,-500.0,0.00013827,2]
[395178543,1764517840127,-500.0,0.00013827,2]
[395178544,1764517840138,-500.0,0.00013827,2]
[395178545,1764517840148,-641.47208077,0.00013827,2]
[395178546,1764517840159,-11528.88950055,0.00013827,2]
[395178547,1764517840169,-1000.0,0.00013829,2]
[395178548,1764517840180,-331.0821075,0.00013928,2]
[395178549,1764517840191,-150.0,0.00013955,2]
[395178550,1764517840202,-150.0,0.00013955,2]
[395178551,1764517840212,-150.0,0.00013955,2]
[395178552,1764517840223,-500.0,0.00013955,2]
[395178553,1764517840233,-150.0,0.00013955,2]
[395178554,1764517840244,-500.0,0.00013955,2]
[395178555,1764517840254,-150.0,0.00013957,2]
[395178556,1764517840265,-150.0,0.00013957,2]
[395178557,1764517840276,-150.0,0.00013957,2]
[395178558,1764517840286,-500.0,0.00013957,2]
[395178559,1764517840296,-500.0,0.00013957,2]
[395178560,1764517840307,-150.0,0.00013964,2]
[395178561,1764517840318,-150.0,0.00013964,2]
[395178562,1764517840328,-150.0,0.00013964,2]
[395178563,1764517840339,-150.0,0.00013964,2]
[395178564,1764517840349,-150.0,0.00013964,2]
[395178565,1764517840359,-150.0,0.00013964,2]
[395178566,1764517840370,-195.0,0.00014016,2]
[395178567,1764517840381,-300.0,0.00014016,2]
[395178568,1764517840391,-263.27950744,0.00014016,2]
[395178569,1764517840401,-540.83858848,0.00014071,2]
[395178570,1764517840411,-7182.5195709,0.0001408,2]
[395178571,1764517840422,-150.0,0.00014092,2]
[395178572,1764517840433,-150.0,0.00014092,2]
[395178573,1764517840443,-150.0,0.00014092,2]
[395178574,1764517840453,-500.0,0.00014092,2]
[395178575,1764517840464,-150.0,0.00014092,2]
[395178577,1764517840474,-500.0,0.00014092,2]
[395178579,1764517840485,-150.0,0.00014094,2]
[395178581,1764517840495,-245.9790849,0.00014094,2]
[395178583,1764517840505,-150.0,0.00014094,2]
[395178585,1764517840515,-500.0,0.00014094,2]
[395178587,1764517840525,-500.0,0.00014094,2]
[395178589,1764517840535,-751.73,0.00014094,2]
[395178591,1764517840545,-150.0,0.00014101,2]
[395178593,1764517840555,-150.0,0.00014101,2]
[395178596,1764517840568,-201.62347752,0.00014101,2]
[395178598,1764517840580,-150.0,0.00014101,2]
[395178600,1764517840590,-195.0,0.00014172,2]
[395178602,1764517840600,-195.0,0.00014199,2]
[395178604,1764517840611,-150.0,0.00014229,2]
[395178606,1764517840621,-150.0,0.00014229,2]
[395178608,1764517840631,-150.0,0.00014229,2]
[395178610,1764517840642,-500.0,0.00014229,2]
[395178612,1764517840653,-150.0,0.00014229,2]
[395178615,1764517840663,-150.0,0.00014229,2]
[395178617,1764517840674,-150.0,0.00014231,2]
[395178619,1764517840684,-150.0,0.00014231,2]
[395178621,1764517840695,-300.0,0.00014231,2]
[395178623,1764517840705,-500.0,0.00014231,2]
[395178625,1764517840715,-200.0,0.00014238,2]
[395178627,1764517840725,-150.0,0.00014238,2]
[395178629,1764517840735,-195.0,0.00014359,2]
[395178631,1764517840745,-164.79,0.00014365,2]
[395178633,1764517840756,-280.06662226,0.00014366,2]
[395178636,1764517840766,-150.0,0.00014366,2]
[395178638,1764517840777,-285.29372692,0.00014366,2]
[395178640,1764517840787,-500.0,0.00014366,2]
[395178642,1764517840798,-150.0,0.00014366,2]
[395178644,1764517840808,-200.0,0.00014368,2]
[395178646,1764517840818,-200.0,0.00014368,2]
[395178648,1764517840828,-500.0,0.00014368,2]
[395178651,1764517840839,-200.0,0.00014368,2]
[395178653,1764517840849,-150.0,0.00014368,2]
[395178655,1764517840859,-500.0,0.00014368,2]
[395178657,1764517840869,-751.73,0.00014368,2]
[395178659,1764517840880,-150.0,0.00014375,2]
[395178661,1764517840890,-500.0,0.00014432,2]
[395178663,1764517840900,-500.0,0.00014432,2]
[395178665,1764517840910,-7182.5195709,0.00014432,2]
[395178668,1764517840920,-206.11458682,0.00014503,2]
[395178670,1764517840931,-500.0,0.00014503,2]
[395178672,1764517840940,-250.0,0.00014503,2]
[395178674,1764517840951,-500.0,0.00014504,2]
[395178676,1764517840961,-500.0,0.00014504,2]
[395178678,1764517840971,-200.0,0.00014505,2]
[395178680,1764517840982,-500.0,0.00014505,2]
[395178682,1764517840992,-200.0,0.00014512,2]
[395178685,1764517841003,-151.0,0.00014521,2]
[395178687,1764517841012,-540.83858848,0.00014542,2]
[395178689,1764517841022,-500.0,0.0001464,2]
[395178691,1764517841032,-500.0,0.00014642,2]
[395178692,1764517841042,-751.73,0.00014642,2]
[395178693,1764517841052,-255.0,0.00014744,2]
[395178694,1764517841063,-500.0,0.00014777,2]
[395178695,1764517841074,-500.0,0.00014779,2]
[395178696,1764517841084,-7182.5195709,0.00014785,2]
[395178697,1764517841095,-500.0,0.00014914,2]
[395178698,1764517841105,-200.0,0.00014916,2]
[395178699,1764517841115,-200.0,0.00014916,2]
[395178700,1764517841125,-500.0,0.00014916,2]
[395178701,1764517841136,-500.0,0.00014916,2]